bitfinex-derivatives/quotes_BTCF0:USTF0_20251011
["timestamp","ask_amount","ask_price","bid_price","bid_amount"]
[1760146508942,0.00152,111780.0,111770.0,0.897974]
[1760146509239,0.00152,111780.0,111770.0,0.99440672]
[1760146509438,0.00152,111780.0,111770.0,1.0606599]
[1760146509439,0.00052,111780.0,111770.0,1.0606599]
[1760146509640,0.4500872,111820.0,111800.0,0.02388]
[1760146509838,0.4500872,111820.0,111800.0,0.15388]
[1760146509839,0.00052,111810.0,111800.0,0.15388]
[1760146510038,0.00052,111810.0,111800.0,1.0039819]
[1760146510337,0.45912286,111840.0,111830.0,0.02388]
[1760146510537,0.37037036,111840.0,111830.0,0.13388]
[1760146511134,0.45964026,111840.0,111830.0,0.13388]
[1760146511441,0.85964026,111840.0,111830.0,0.11]
[1760146512339,0.86064026,111840.0,111830.0,0.0742532]
[1760146512738,1.21490915,111840.0,111830.0,0.0742532]
[1760146513039,1.21690915,111840.0,111830.0,0.00251447]
[1760146513347,0.46264026,111840.0,111830.0,0.02639447]
[1760146513736,0.86264026,111840.0,111830.0,0.00251447]
[1760146513937,0.86264026,111840.0,111830.0,7e-08]
[1760146514242,0.46264026,111840.0,111830.0,0.02388007]
[1760146514739,0.01257036,111840.0,111830.0,0.02388007]
[1760146514941,0.46264026,111840.0,111830.0,0.02388007]
[1760146515243,0.00352,111840.0,111830.0,0.42388007]
[1760146515437,0.00352,111840.0,111830.0,0.78468007]
[1760146515942,0.00352,111840.0,111830.0,0.38468007]
[1760146516137,0.00352,111840.0,111830.0,0.02388007]
[1760146516334,0.0927899,111840.0,111830.0,0.02388007]
[1760146516537,0.4535899,111840.0,111830.0,0.02388007]
[1760146517337,0.0927899,111840.0,111830.0,0.42388007]
[1760146517538,0.4535899,111840.0,111830.0,0.02388007]
[1760146517742,0.00352,111840.0,111830.0,0.42388007]
[1760146518147,0.0927899,111840.0,111830.0,0.02388007]
[1760146518340,0.00352,111840.0,111830.0,0.02388007]
[1760146518540,0.00352,111840.0,111830.0,0.42388007]
[1760146518735,0.00352,111840.0,111830.0,0.78468007]
[1760146519140,0.00352,111840.0,111830.0,0.02388007]
[1760146519348,0.00352,111840.0,111830.0,0.78468007]
[1760146519651,0.00268,111880.0,111870.0,0.02388]
[1760146519841,0.00052,111880.0,111870.0,0.56388]
[1760146520345,0.37428313,111880.0,111870.0,0.56388]
[1760146521147,0.37528313,111880.0,111870.0,0.56388]
[1760146521440,0.46652113,111880.0,111870.0,0.16388]
[1760146521640,0.86652113,111880.0,111870.0,0.16388]
[1760146522648,0.86652113,111880.0,111870.0,0.1399989]
[1760146522946,0.089254,111860.0,111850.0,0.02388]
[1760146523141,0.810854,111860.0,111850.0,0.14388]
[1760146523648,0.450054,111860.0,111850.0,0.14388]
[1760146524244,0.3608,111860.0,111850.0,0.14388]
[1760146524541,0.4500486,111870.0,111860.0,0.02388]
[1760146524747,0.8108486,111870.0,111860.0,0.14388]
[1760146524947,0.0892486,111870.0,111860.0,0.14388]
[1760146525136,0.4500486,111870.0,111860.0,0.14388]
[1760146525341,0.46352313,111880.0,111870.0,0.02388]
[1760146525541,0.46352313,111880.0,111870.0,0.14388]
[1760146526439,0.86352313,111880.0,111870.0,0.1194192]
[1760146526643,0.86352313,111880.0,111850.0,0.02388]
[1760146526644,0.089254,111860.0,111850.0,0.02388]
[1760146526853,0.810854,111860.0,111850.0,0.06388]
[1760146527543,1.56512289,111860.0,111850.0,0.06388]
[1760146528047,1.56612289,111860.0,111850.0,0.00756]
[1760146529042,1.211854,111860.0,111850.0,0.00756]
[1760146529243,0.811854,111860.0,111850.0,0.03144]
[1760146529743,1.211854,111860.0,111850.0,0.03144]
[1760146530445,0.811854,111860.0,111850.0,0.03144]
[1760146530745,0.46352773,111880.0,111870.0,0.02388]
[1760146530940,0.46352773,111880.0,111870.0,0.14388]
[1760146531137,0.46352113,111880.0,111870.0,0.14388]
[1760146531341,0.37428313,111880.0,111870.0,0.14388]
[1760146531539,0.01348313,111880.0,111870.0,0.54388]
[1760146531744,0.46352113,111880.0,111870.0,0.14388]
[1760146531938,0.86352113,111880.0,111870.0,0.14388]
[1760146532343,0.86552113,111880.0,111870.0,0.12]
[1760146532644,0.86552113,111880.0,111870.0,0.0910978]
[1760146532842,1.21979002,111880.0,111870.0,0.0910978]
[1760146533941,0.46552113,111880.0,111870.0,0.1149778]
[1760146534443,1.21979002,111880.0,111870.0,0.1149778]
[1760146534843,1.21979002,111880.0,111870.0,0.00945213]
[1760146535146,0.089246,111870.0,111860.0,0.02388]
[1760146535347,0.46552233,111880.0,111860.0,0.16726604]
[1760146535537,0.46552233,111880.0,111870.0,0.02388]
[1760146535538,0.01548313,111880.0,111870.0,0.02388]
[1760146535744,0.37628313,111880.0,111870.0,0.14388]
[1760146535945,0.46552113,111880.0,111870.0,0.14388]
[1760146536443,0.86552113,111880.0,111870.0,0.12]
[1760146536646,0.86552113,111880.0,111840.0,0.20388]
[1760146536848,0.450062,111850.0,111840.0,0.07388]
[1760146537852,0.80433089,111850.0,111840.0,0.05]
[1760146538150,1.20433089,111850.0,111840.0,0.05]
[1760146538746,1.20533089,111850.0,111840.0,0.05]
[1760146539547,0.0892779,111830.0,111820.0,8.966e-05]
[1760146539847,0.4500745,111840.0,111830.0,0.02402]
[1760146540148,0.4500745,111840.0,111830.0,0.13402]
[1760146540352,0.3608,111840.0,111830.0,0.15753698]
[1760146540554,0.4500699,111840.0,111830.0,0.15753698]
[1760146540849,0.0893672,111840.0,111830.0,0.15753579]
[1760146541054,0.4506872,111840.0,111830.0,0.15753579]
[1760146541258,0.86609827,111840.0,111830.0,0.13402]
[1760146541455,0.86609827,111840.0,111800.0,0.19886139]
[1760146541456,0.0892939,111810.0,111800.0,0.19886139]
[1760146541650,0.0893019,111800.0,111790.0,0.05604173]
[1760146541953,6.746e-05,111810.0,111800.0,0.02402]
[1760146542160,6.746e-05,111810.0,111800.0,0.14402]
[1760146542648,6.746e-05,111810.0,111800.0,0.50482]
[1760146542953,6.746e-05,111810.0,111800.0,0.90482]
[1760146543754,6.746e-05,111810.0,111800.0,0.14402]
[1760146544453,1.22637243,111810.0,111800.0,0.14402]
[1760146544654,1.22637243,111810.0,111800.0,0.12]
[1760146545153,6.746e-05,111810.0,111800.0,0.54402]
[1760146545657,6.746e-05,111810.0,111800.0,0.90482]
[1760146546054,6.746e-05,111810.0,111800.0,0.54402]
[1760146546251,6.746e-05,111810.0,111800.0,0.14402]
[1760146546554,6.746e-05,111810.0,111800.0,0.9941217]
[1760146546555,0.00106746,111810.0,111800.0,0.9941217]
[1760146546855,0.00106746,111810.0,111800.0,0.90482]
[1760146547053,0.00106746,111810.0,111800.0,0.9941217]
[1760146547253,6.746e-05,111810.0,111800.0,0.90482]
[1760146547457,6.746e-05,111810.0,111800.0,0.54402]
[1760146547860,6.746e-05,111810.0,111800.0,0.14402]
[1760146548357,6.746e-05,111810.0,111800.0,0.50482]
[1760146548653,6.746e-05,111810.0,111800.0,0.90482]
[1760146549252,0.08936106,111810.0,111800.0,0.14402]
[1760146549857,6.746e-05,111810.0,111800.0,0.90482]
[1760146550057,6.746e-05,111810.0,111800.0,0.9941216]
[1760146550450,0.0897925,111840.0,111830.0,0.02569]
[1760146550657,0.0897925,111840.0,111830.0,0.14569]
[1760146551759,0.86600357,111840.0,111830.0,0.14569]
[1760146551958,1.26600357,111840.0,111830.0,0.12]
[1760146552260,0.0892856,111820.0,111810.0,0.02569]
[1760146552463,1.22629667,111820.0,111810.0,0.08569]
[1760146552756,0.0893016,111800.0,111790.0,0.00245978]
[1760146552958,0.0893016,111800.0,111790.0,0.13]
[1760146552959,0.86551267,111800.0,111790.0,0.13]
[1760146553163,1.26551267,111800.0,111790.0,0.13]
[1760146553358,0.8501016,111800.0,111790.0,0.13]
[1760146553557,1.26551267,111800.0,111790.0,0.13]
[1760146553958,0.8501016,111800.0,111790.0,0.13]
[1760146554159,1.26551267,111800.0,111790.0,0.13]
[1760146554456,0.86551267,111800.0,111790.0,0.13]
[1760146554655,0.50471267,111800.0,111790.0,0.13]
[1760146554860,0.4501016,111800.0,111790.0,0.13]
[1760146555060,0.86551267,111800.0,111790.0,0.13]
[1760146556965,1.26551267,111800.0,111790.0,0.1029536]
[1760146557168,0.86551267,111800.0,111790.0,0.1029536]
[1760146557762,1.26551267,111800.0,111790.0,0.1286436]
[1760146558764,0.86551267,111800.0,111790.0,0.1286436]
[1760146558954,0.3608,111800.0,111790.0,0.5286436]
[1760146559359,0.3608,111800.0,111790.0,0.5516357]
[1760146559563,0.0892985,111810.0,111800.0,0.02569]
[1760146559861,0.4500985,111810.0,111800.0,0.14569]
[1760146560060,1.26550957,111810.0,111800.0,0.12]
[1760146560562,1.26550957,111810.0,111800.0,0.09384983]
[1760146561662,0.0892985,111810.0,111800.0,0.11953983]
[1760146561860,0.86550957,111810.0,111800.0,0.11953983]
[1760146562261,0.0892985,111810.0,111800.0,0.11953983]
[1760146562564,0.50470147,111820.0,111810.0,0.02569]
[1760146562766,0.86550147,111820.0,111810.0,0.13569]
[1760146563564,1.26550147,111820.0,111810.0,0.11]
[1760146564163,0.77621107,111820.0,111810.0,0.11]
[1760146564469,0.93570825,111830.0,111820.0,0.02569]
[1760146564774,0.93570825,111830.0,111820.0,0.16569]
[1760146566365,0.52029718,111830.0,111820.0,0.16569]
[1760146566673,0.43101488,111830.0,111820.0,0.16569]
[1760146566968,0.07121488,111830.0,111820.0,0.58859268]
[1760146567163,0.07121488,111830.0,111820.0,0.94939268]
[1760146567359,0.57590365,111830.0,111820.0,0.18859268]
[1760146567560,0.93670365,111830.0,111820.0,0.16569]
[1760146567966,1.33670365,111830.0,111820.0,0.16569]
[1760146568269,1.33670365,111830.0,111820.0,0.14]
[1760146568472,1.33570365,111830.0,111820.0,0.14]
[1760146569172,0.93570365,111830.0,111820.0,0.14]
[1760146569470,0.07021488,111830.0,111820.0,0.56473]
[1760146569773,0.450595,111840.0,111830.0,0.02473]
[1760146570066,0.00052,111840.0,111830.0,0.16763116]
[1760146570271,0.4505896,111840.0,111830.0,0.14473]
[1760146570471,0.86600067,111840.0,111830.0,0.21805]
[1760146570672,1.26600067,111840.0,111830.0,0.19332]
[1760146571172,1.26600067,111840.0,111830.0,0.17100143]
[1760146571365,1.26600067,111840.0,111830.0,3e-08]
[1760146571561,1.26600067,111840.0,111800.0,0.23569]
[1760146571562,0.0892936,111810.0,111800.0,0.23569]
[1760146571766,0.86550467,111810.0,111800.0,0.15569]
[1760146571970,0.4500936,111810.0,111800.0,0.15569]
[1760146572174,0.86549937,111820.0,111800.0,0.15569]
[1760146572372,0.86549937,111820.0,111810.0,0.02473]
[1760146572575,0.86549157,111830.0,111820.0,0.02473]
[1760146572779,0.86549157,111830.0,111820.0,0.13473]
[1760146574075,1.26549157,111830.0,111820.0,0.11]
[1760146574484,0.86549157,111830.0,111820.0,0.11]
[1760146574684,0.86649157,111830.0,111820.0,0.11]
[1760146575182,0.4510805,111830.0,111820.0,0.13473]
[1760146575377,0.86649157,111830.0,111820.0,0.13473]
[1760146576284,1.26649157,111830.0,111820.0,0.11]
[1760146576686,0.86649157,111830.0,111820.0,0.13473]
[1760146576883,0.4510805,111830.0,111820.0,0.13473]
[1760146577180,0.86649157,111830.0,111820.0,0.13473]
[1760146577384,0.86549157,111830.0,111820.0,0.13473]
[1760146577574,0.86649157,111830.0,111820.0,0.13473]
[1760146577778,1.26649157,111830.0,111820.0,0.13473]
[1760146577978,0.86649157,111830.0,111820.0,0.13473]
[1760146579481,0.001,111830.0,111820.0,1.25633]
[1760146579682,0.001,111830.0,111820.0,1.36833367]
[1760146579879,0.001,111830.0,111820.0,1.27905637]
[1760146580380,0.00052,111840.0,111820.0,1.27905637]
[1760146580585,0.00052,111840.0,111830.0,1.26547447]
[1760146580889,0.00052,111850.0,111830.0,1.00751977]
[1760146581189,0.00052,111850.0,111840.0,0.38553]
[1760146581389,0.00052,111850.0,111840.0,0.51825637]
[1760146581590,0.00052,111850.0,111840.0,0.91825637]
[1760146581786,0.00052,111850.0,111840.0,0.49553]
[1760146581990,0.00052,111850.0,111840.0,0.51846344]
[1760146582184,0.00052,111850.0,111840.0,0.49553]
[1760146582590,0.00152,111850.0,111840.0,0.89553]
[1760146582890,0.00152,111850.0,111840.0,0.91845142]
[1760146583386,0.00152,111850.0,111840.0,0.51845142]
[1760146583589,0.00152,111850.0,111840.0,0.49553]
[1760146583785,0.0907733,111850.0,111840.0,0.49553]
[1760146584185,0.0907733,111850.0,111840.0,0.89553]
[1760146584381,0.00152,111850.0,111840.0,0.89553]
[1760146584583,0.00152,111850.0,111840.0,1.00797948]
[1760146584892,0.00152,111850.0,111840.0,0.91871818]
[1760146585288,0.00152,111850.0,111840.0,0.51871818]
[1760146586094,0.00152,111850.0,111840.0,0.91871818]
[1760146586290,0.00152,111850.0,111840.0,1.00797948]
[1760146586792,0.51752032,111880.0,111870.0,0.02473]
[1760146586991,0.87884032,111880.0,111870.0,0.15473]
[1760146587294,0.87884032,111880.0,111870.0,0.1030496]
[1760146587488,0.87884032,111880.0,111870.0,0.1277796]
[1760146587790,0.87884032,111880.0,111870.0,0.1030496]
[1760146587989,1.27884032,111880.0,111870.0,0.1030496]
[1760146588189,0.17437687,111880.0,111870.0,0.1277796]
[1760146588389,0.58978794,111880.0,111870.0,0.1277796]
[1760146588894,0.95058794,111880.0,111870.0,0.1277796]
[1760146589189,0.17437227,111880.0,111870.0,0.1277796]
[1760146589892,0.08514307,111880.0,111870.0,0.1277796]
[1760146590291,0.08514307,111880.0,111870.0,0.4885796]
[1760146590292,0.17437227,111880.0,111870.0,0.4885796]
[1760146590683,0.00052,111880.0,111870.0,1.39322777]
[1760146591289,0.00052,111880.0,111870.0,0.9778167]
[1760146591595,0.02418407,111880.0,111870.0,0.9778162]
[1760146591893,0.00052,111880.0,111870.0,0.8885796]
[1760146592385,0.00052,111880.0,111870.0,0.4885796]
[1760146593289,0.00052,111880.0,111870.0,0.8885796]
[1760146593491,0.00052,111880.0,111870.0,1.39322737]
[1760146593994,0.00052,111880.0,111870.0,1.00073393]
[1760146595992,0.00052,111880.0,111870.0,1.00173393]
[1760146596196,0.00052,111880.0,111870.0,1.00273393]
[1760146596391,0.00052,111880.0,111870.0,0.55565723]
[1760146596599,0.00052,111880.0,111870.0,1.460305]
[1760146596801,0.00052,111880.0,111870.0,0.55565723]
[1760146597296,0.00052,111880.0,111870.0,0.95565723]
[1760146597506,0.00052,111880.0,111870.0,1.459305]
[1760146597693,0.0897487,111880.0,111870.0,0.55565723]
[1760146598097,0.0897487,111880.0,111870.0,0.55465723]
[1760146598399,0.0897487,111880.0,111870.0,0.55565723]
[1760146598903,0.90515977,111880.0,111870.0,0.1297796]
[1760146599202,1.26595977,111880.0,111870.0,0.1297796]
[1760146599796,1.26595977,111880.0,111870.0,0.05627041]
[1760146600099,1.26595977,111880.0,111850.0,0.01243908]
[1760146600100,0.0892446,111860.0,111850.0,0.01243908]
[1760146600299,0.86545567,111860.0,111850.0,0.15243908]
[1760146600495,0.86545567,111860.0,111850.0,0.14]
[1760146600496,1.62525567,111860.0,111850.0,0.14]
[1760146600695,0.86445567,111860.0,111850.0,0.10106172]
[1760146600893,0.86445567,111860.0,111850.0,0.04478172]
[1760146601099,0.4480446,111860.0,111850.0,0.04478172]
[1760146601296,0.86345567,111860.0,111850.0,0.04478172]
[1760146601498,0.80168533,111860.0,111850.0,0.04578172]
[1760146601697,1.56248533,111860.0,111850.0,0.04678172]
[1760146602302,0.8088446,111860.0,111850.0,0.04678172]
[1760146602601,1.16248533,111860.0,111850.0,0.04678172]
[1760146602803,1.56248533,111860.0,111850.0,0.04678172]
[1760146603701,1.16248533,111860.0,111850.0,0.00277172]
[1760146603894,1.56248533,111860.0,111850.0,0.00277172]
[1760146604092,1.16248533,111860.0,111850.0,0.00277172]
[1760146604900,1.16248533,111860.0,111850.0,0.02715172]
[1760146605096,0.0872446,111860.0,111850.0,0.02715172]
[1760146605501,0.3608,111870.0,111860.0,0.06626]
[1760146605701,0.44338953,111880.0,111870.0,0.02438]
[1760146605897,0.44338953,111880.0,111870.0,0.51518]
[1760146605898,0.00052,111880.0,111870.0,0.51518]
[1760146606093,0.00052,111880.0,111870.0,0.21905458]
[1760146606299,0.00052,111880.0,111870.0,0.57985458]
[1760146606701,0.0897487,111880.0,111870.0,0.21905458]
[1760146607000,0.0897487,111880.0,111870.0,0.17717458]
[1760146607200,1.20418943,111880.0,111870.0,0.17717458]
[1760146607603,1.20418943,111880.0,111870.0,0.15438]
[1760146607804,1.20418943,111880.0,111870.0,0.13]
[1760146608308,0.80418943,111880.0,111870.0,0.15438]
[1760146608907,0.80418943,111880.0,111870.0,0.17720707]
[1760146609403,1.20418943,111880.0,111870.0,0.17720707]
[1760146609707,1.20418943,111880.0,111870.0,0.15282707]
[1760146610099,1.20418943,111880.0,111870.0,0.03406856]
[1760146610405,0.80418943,111880.0,111870.0,0.03406856]
[1760146611203,0.80418943,111880.0,111870.0,0.05845856]
[1760146611899,1.20418943,111880.0,111870.0,0.05845856]
[1760146612100,0.80418943,111880.0,111870.0,0.05845856]
[1760146612612,0.80418943,111880.0,111870.0,0.08130243]
[1760146613002,1.20418943,111880.0,111870.0,0.08130243]
[1760146613200,1.20418943,111880.0,111870.0,0.08230243]
[1760146613603,0.80418943,111880.0,111870.0,0.08230243]
[1760146613804,1.20418943,111880.0,111870.0,0.0325156]
[1760146614309,0.80418943,111880.0,111870.0,0.0325156]
[1760146614703,0.80418943,111880.0,111870.0,0.0569056]
[1760146614899,0.80418943,111880.0,111870.0,0.07926675]
[1760146615201,0.0897485,111880.0,111870.0,0.07926675]
[1760146615399,0.00052,111880.0,111870.0,0.88292675]
[1760146615600,0.00052,111880.0,111870.0,0.99608506]
[1760146615803,0.00052,111880.0,111870.0,0.50684856]
[1760146616309,0.00052,111880.0,111870.0,0.14604856]
[1760146616607,0.0897485,111880.0,111870.0,0.14604856]
[1760146616811,0.4897485,111880.0,111870.0,0.07926675]
[1760146617107,0.8505485,111880.0,111870.0,0.02298675]
[1760146617306,0.8505485,111880.0,111870.0,0.13298675]
[1760146617510,0.8505485,111880.0,111870.0,0.07670675]
[1760146618609,0.8505485,111880.0,111870.0,0.03116815]
[1760146620004,0.8505485,111880.0,111870.0,5e-08]
[1760146620712,0.0892366,111870.0,111860.0,0.01702005]
[1760146620909,0.80367733,111870.0,111860.0,0.17141005]
[1760146621212,1.20367733,111870.0,111860.0,0.14702005]
[1760146621411,1.20367733,111870.0,111830.0,0.57911181]
[1760146621412,0.0892606,111840.0,111830.0,0.19034473]
[1760146621605,0.0892606,111840.0,111830.0,0.13439]
[1760146621805,0.0882606,111840.0,111830.0,0.13439]
[1760146622210,0.0882606,111840.0,111830.0,0.17725]
[1760146622408,0.0887806,111840.0,111830.0,0.53805]
[1760146622608,0.0887806,111840.0,111830.0,0.17725]
[1760146622809,0.0887806,111840.0,111830.0,0.49519]
[1760146623116,0.0877806,111840.0,111830.0,0.13439]
[1760146623314,0.0877806,111840.0,111830.0,0.17725]
[1760146623912,0.0877806,111840.0,111830.0,0.17825]
[1760146624214,0.00052,111840.0,111830.0,0.53905]
[1760146624415,0.00052,111840.0,111830.0,0.93905]
[1760146624616,0.00052,111840.0,111830.0,0.94005]
[1760146625209,0.00052,111840.0,111830.0,1.07743663]
[1760146625417,0.00052,111850.0,111840.0,0.1136449]
[1760146625617,0.00052,111850.0,111840.0,0.60605178]
[1760146625909,0.00052,111850.0,111840.0,0.59005226]
[1760146626111,0.0897725,111850.0,111840.0,0.63805404]
[1760146626310,0.0897725,111850.0,111840.0,0.22925226]
[1760146626506,0.0897725,111850.0,111840.0,0.15439]
[1760146626706,0.4505725,111850.0,111840.0,0.15539]
[1760146627408,0.0897725,111850.0,111840.0,0.15639]
[1760146627804,0.4505725,111850.0,111840.0,0.15639]
[1760146628713,0.00052,111850.0,111840.0,0.59925]
[1760146628915,0.00052,111850.0,111840.0,0.63125226]
[1760146629304,0.00052,111850.0,111840.0,0.99205226]
[1760146629511,0.00052,111850.0,111840.0,1.01459604]
[1760146631006,0.00052,111850.0,111840.0,1.11985626]
[1760146631209,0.3608,111890.0,111880.0,0.02417]
[1760146631210,0.0892262,111890.0,111880.0,0.02417]
[1760146631417,0.0897462,111890.0,111880.0,0.16671378]
[1760146631613,0.00052,111890.0,111880.0,0.92751378]
[1760146631811,0.0897409,111890.0,111880.0,0.16671378]
[1760146632116,0.0897409,111890.0,111880.0,0.56671378]
[1760146632311,0.0897409,111890.0,111880.0,0.16671378]
[1760146632618,0.8505409,111890.0,111880.0,0.16671378]
[1760146633218,0.4505409,111890.0,111880.0,0.16671378]
[1760146633513,1.20418163,111890.0,111880.0,0.14254378]
[1760146633820,1.20418163,111890.0,111880.0,0.03197499]
[1760146634014,1.25103256,111890.0,111880.0,0.03041498]
[1760146634317,0.0892369,111870.0,111850.0,0.20417]
[1760146634617,0.4500448,111860.0,111850.0,0.14417]
[1760146635920,0.4500448,111860.0,111850.0,0.14517]
[1760146636122,0.0892608,111840.0,111830.0,0.01193738]
[1760146636321,0.0892608,111840.0,111830.0,0.05193738]
[1760146636519,0.4500582,111850.0,111830.0,0.05193738]
[1760146636816,0.4490582,111850.0,111840.0,0.02417]
[1760146637122,0.4495782,111850.0,111840.0,0.15417]
[1760146638027,1.20321893,111850.0,111840.0,0.13]
[1760146638323,1.20321893,111850.0,111840.0,0.131]
[1760146639018,1.20321893,111850.0,111840.0,0.132]
[1760146639415,0.80321893,111850.0,111840.0,0.15617]
[1760146641026,0.4495782,111850.0,111840.0,0.15617]
[1760146641727,0.80321893,111850.0,111840.0,0.15617]
[1760146641921,0.4495782,111850.0,111840.0,0.15617]
[1760146642526,1.2103782,111850.0,111840.0,0.132]
[1760146643418,0.8103782,111850.0,111840.0,0.15617]
[1760146643620,1.2103782,111850.0,111840.0,0.132]
[1760146643821,1.2103782,111850.0,111840.0,0.02006847]
[1760146644226,0.0892767,111820.0,111810.0,0.25390254]
[1760146644433,0.0892721,111830.0,111820.0,0.02417]
[1760146644730,0.0892721,111830.0,111820.0,0.16417]
[1760146644932,0.4500721,111830.0,111820.0,0.16417]
[1760146645328,0.0892627,111840.0,111830.0,0.02417]
[1760146645528,0.0892627,111840.0,111830.0,0.16417]
[1760146645739,0.4500627,111840.0,111830.0,0.16417]
[1760146646829,0.4500627,111840.0,111830.0,0.141]
[1760146646830,0.5867529,111840.0,111830.0,0.141]
[1760146647527,0.9867529,111840.0,111830.0,0.141]
[1760146647731,0.9867529,111840.0,111830.0,0.13130134]
[1760146647928,0.9867529,111840.0,111830.0,0.09310134]
[1760146648126,0.9867529,111840.0,111830.0,0.09410134]
[1760146649429,0.4500627,111840.0,111830.0,0.15923134]
[1760146649625,0.00052,111850.0,111840.0,0.02417]
[1760146649830,0.0897738,111850.0,111840.0,0.13417]
[1760146650031,0.0897738,111850.0,111840.0,0.11]
[1760146650235,0.4505738,111850.0,111840.0,0.11]
[1760146650638,0.5812013,111850.0,111840.0,0.11]
[1760146650835,0.0882692,111830.0,111820.0,0.02417]
[1760146651032,0.0872692,111830.0,111820.0,0.11513]
[1760146651633,0.10747946,111830.0,111820.0,0.11513]
[1760146651828,0.02073026,111830.0,111820.0,0.11513]
[1760146652031,0.02073026,111830.0,111820.0,0.47793]
[1760146652235,0.10999916,111830.0,111820.0,0.11713]
[1760146652429,0.10999916,111830.0,111820.0,0.07717]
[1760146652636,0.10999916,111830.0,111820.0,0.51813]
[1760146652828,0.10999916,111830.0,111820.0,0.11813]
[1760146653030,0.10999916,111830.0,111820.0,0.07717]
[1760146653231,0.47079916,111830.0,111820.0,0.07717]
[1760146653832,0.47079916,111830.0,111820.0,0.053]
[1760146656643,0.47079916,111830.0,111820.0,0.07717]
[1760146656835,0.02073026,111830.0,111820.0,0.51813]
[1760146657630,0.02073026,111830.0,111820.0,0.87893]
[1760146657832,0.02073026,111830.0,111820.0,0.51813]
[1760146658036,0.10999916,111830.0,111820.0,0.51813]
[1760146658241,0.47079916,111830.0,111820.0,0.51813]
[1760146658438,0.10999916,111830.0,111820.0,0.51813]
[1760146658938,0.02073026,111830.0,111820.0,0.87893]
[1760146659241,0.02073026,111830.0,111820.0,0.51813]
[1760146659435,0.02073026,111830.0,111820.0,0.87893]
[1760146661039,0.02073026,111830.0,111820.0,0.51813]
[1760146661240,0.02073026,111830.0,111820.0,0.87893]
[1760146661846,0.02073026,111830.0,111820.0,0.9682069]
[1760146662237,0.02073026,111830.0,111820.0,0.87893]
[1760146662440,0.02073026,111830.0,111820.0,0.9682069]
[1760146662637,0.00052,111830.0,111820.0,1.38355351]
[1760146662838,0.3608,111860.0,111850.0,0.0639]
[1760146663038,0.4505655,111860.0,111850.0,0.14448]
[1760146663341,0.86591211,111860.0,111850.0,0.12]
[1760146663539,0.8505655,111860.0,111850.0,0.12]
[1760146663733,0.0892689,111830.0,111820.0,0.21365832]
[1760146663939,0.0892689,111830.0,111820.0,0.05558278]
[1760146664139,0.02069399,111830.0,111820.0,0.09500278]
[1760146664339,0.4500616,111840.0,111820.0,0.09500278]
[1760146664540,0.4500616,111840.0,111830.0,0.02448]
[1760146664845,0.4500616,111840.0,111830.0,0.14448]
[1760146666147,0.4500616,111840.0,111830.0,0.12]
[1760146666342,0.4500616,111840.0,111830.0,0.121]
[1760146666645,0.4500616,111840.0,111830.0,0.122]
[1760146667142,0.50189609,111840.0,111830.0,0.122]
[1760146667341,0.41263519,111840.0,111830.0,0.1859]
[1760146667548,0.47050513,111840.0,111830.0,0.14648]
[1760146668149,0.47050513,111840.0,111830.0,0.16928809]
[1760146668342,0.47050513,111840.0,111830.0,0.14480809]
[1760146669050,0.38124423,111840.0,111830.0,0.14480809]
[1760146669348,0.38176423,111840.0,111830.0,0.16928809]
[1760146669548,0.47102523,111840.0,111830.0,0.16928809]
[1760146669950,0.38176423,111840.0,111830.0,0.16928809]
[1760146670647,0.11022523,111840.0,111830.0,0.16928809]
[1760146670946,0.52557184,111840.0,111830.0,0.14480809]
[1760146671150,1.28637184,111840.0,111830.0,0.11842627]
[1760146671350,1.28637184,111840.0,111830.0,0.14114734]
[1760146671944,1.28637184,111840.0,111830.0,0.08225563]
[1760146672550,1.28637184,111840.0,111830.0,0.05953456]
[1760146672947,1.33322277,111840.0,111830.0,0.05953456]
[1760146673345,1.28637184,111840.0,111830.0,0.05953456]
[1760146673547,1.33322277,111840.0,111830.0,0.04246722]
[1760146673952,1.33322277,111840.0,111830.0,0.03799216]
[1760146674552,1.28637184,111840.0,111830.0,0.03799216]
[1760146675456,1.28637184,111840.0,111830.0,0.03699216]
[1760146676046,1.28637184,111840.0,111830.0,0.49913216]
[1760146676047,0.02096423,111840.0,111830.0,0.49913216]
[1760146676252,0.02096423,111840.0,111830.0,0.52301615]
[1760146676756,0.02096423,111840.0,111830.0,0.97308515]
[1760146677662,0.02096423,111840.0,111830.0,0.97408515]
[1760146678458,0.02096423,111840.0,111830.0,0.97508515]
[1760146679453,0.02096423,111840.0,111830.0,0.88580196]
[1760146679759,0.02096423,111840.0,111830.0,0.84729196]
[1760146680058,0.02096423,111840.0,111830.0,0.44729196]
[1760146680259,0.02096423,111840.0,111830.0,0.44629196]
[1760146680458,0.88637204,111840.0,111830.0,0.06086196]
[1760146680873,1.28637204,111840.0,111830.0,0.06086196]
[1760146681370,1.28637204,111840.0,111830.0,0.05986196]
[1760146681570,1.28637204,111840.0,111830.0,0.06086196]
[1760146682172,1.28637204,111840.0,111830.0,0.05417047]
[1760146682670,0.0892772,111820.0,111810.0,0.00547253]
[1760146682972,0.0892772,111820.0,111810.0,0.11]
[1760146683872,0.4500772,111820.0,111810.0,0.11]
[1760146684069,0.8500772,111820.0,111810.0,0.0609]
[1760146684667,0.0395,111800.0,111780.0,0.10313134]
[1760146684862,0.03975,111790.0,111780.0,0.18314]
[1760146685067,0.4898511,111790.0,111780.0,0.12]
[1760146685269,0.40055,111790.0,111780.0,0.18314]
[1760146685471,0.3608,111800.0,111790.0,0.06314]
[1760146685773,0.3608,111800.0,111790.0,0.17314]
[1760146686169,0.40055,111800.0,111790.0,0.17314]
[1760146686471,0.3608,111800.0,111790.0,0.6624411]
[1760146686774,0.3608,111810.0,111800.0,0.06314]
[1760146686976,0.4898296,111820.0,111810.0,0.06314]
[1760146687274,0.4898296,111820.0,111810.0,0.17314]
[1760146687465,0.4898296,111820.0,111810.0,0.11]
[1760146688068,0.40055,111820.0,111810.0,0.57469]
[1760146688367,0.3608,111820.0,111810.0,0.6639751]
[1760146688566,0.51312593,111840.0,111830.0,0.02471]
[1760146688771,0.42386423,111840.0,111830.0,0.13]
[1760146689271,0.51313143,111840.0,111830.0,0.13]
[1760146689569,0.38176423,111840.0,111830.0,0.59469]
[1760146689769,0.02096423,111840.0,111830.0,0.59469]
[1760146689972,0.02096423,111840.0,111830.0,0.95549]
[1760146690170,0.02096423,111840.0,111830.0,0.59469]
[1760146690766,0.42386423,111840.0,111830.0,0.19469]